[Event "*** Titled Tuesday Blitz"]
[Site "Chess.com"]
[Date "2021.03.02"]
[Round "4"]
[White "Grieve72"]
[Black "Shahaliyev"]
[Result "1-0"]
[WhiteElo "2537"]
[BlackElo "2709"]
[TimeControl "180+1"]
[EndTime "10:39:35 PST"]
[Termination "Grieve72 won by resignation"]

1. d4 {[%clk 0:03:00.9]} 1... Nf6 {[%clk 0:02:59.9]} 2. Bg5 {[%clk 0:03:00.4]}
2... d5 {[%clk 0:02:52.4]} 3. Bxf6 {[%clk 0:03:00.2]} 3... gxf6 {[%clk
0:02:51.6]} 4. c4 {[%clk 0:02:59.3]} 4... c6 {[%clk 0:02:45.3]} 5. e3 {[%clk
0:02:55.6]} 5... Bf5 {[%clk 0:02:40.3]} 6. Qb3 {[%clk 0:02:55.3]} 6... Qb6
{[%clk 0:02:36.1]} 7. Nc3 {[%clk 0:02:46.5]} 7... Qxb3 {[%clk 0:02:26.9]} 8.
axb3 {[%clk 0:02:47.1]} 8... e6 {[%clk 0:02:27.5]} 9. c5 {[%clk 0:02:25.9]} 9...
e5 {[%clk 0:02:01]} 10. b4 {[%clk 0:02:20.1]} 10... Bh6 {[%clk 0:01:55.4]} 11.
Nf3 {[%clk 0:02:09.6]} 11... Nd7 {[%clk 0:01:54.9]} 12. b5 {[%clk 0:02:03.1]}
12... Kd8 {[%clk 0:01:43.3]} 13. Be2 {[%clk 0:01:46.6]} 13... Kc7 {[%clk
0:01:29.4]} 14. b4 {[%clk 0:01:44.3]} 14... Rhg8 {[%clk 0:01:23.5]} 15. bxc6
{[%clk 0:01:14.6]} 15... bxc6 {[%clk 0:01:23.2]} 16. b5 {[%clk 0:01:15.1]} 16...
Be4 {[%clk 0:00:56.2]} 17. bxc6 {[%clk 0:00:37.3]} 17... Kxc6 {[%clk 0:00:55.3]}
18. Ra6+ {[%clk 0:00:27]} 18... Kc7 {[%clk 0:00:55.7]} 19. Nb5+ {[%clk
0:00:26.3]} 19... Kd8 {[%clk 0:00:54]} 20. O-O {[%clk 0:00:20.2]} 20... Ke7
{[%clk 0:00:42.6]} 21. Rfa1 {[%clk 0:00:16.6]} 21... Rgb8 {[%clk 0:00:27.4]} 22.
Rxa7 {[%clk 0:00:16.6]} 22... Rxa7 {[%clk 0:00:27.4]} 23. Rxa7 {[%clk
0:00:17.5]} 23... Bxf3 {[%clk 0:00:24]} 24. gxf3 {[%clk 0:00:18.4]} 24... Ke6
{[%clk 0:00:24.5]} 25. Nc7+ {[%clk 0:00:11.8]} 25... Kf5 {[%clk 0:00:24.4]} 26.
Nxd5 {[%clk 0:00:12]} 26... Nf8 {[%clk 0:00:16.2]} 27. Bd3+ {[%clk 0:00:07.6]}
27... Kg5 {[%clk 0:00:10.8]} 28. c6 {[%clk 0:00:07]} 28... Ng6 {[%clk
0:00:05.9]} 29. c7 {[%clk 0:00:07.1]} 29... Rc8 {[%clk 0:00:06.5]} 30. Ba6
{[%clk 0:00:07]} 30... Rg8 {[%clk 0:00:05.2]} 31. c8=Q {[%clk 0:00:06.8]} 1-0

[Event "*** Titled Tuesday Blitz"]
[Site "Chess.com"]
[Date "2021.03.02"]
[Round "4"]
[White "Majesth"]
[Black "ulkaf961"]
[Result "0-1"]
[WhiteElo "2566"]
[BlackElo "2382"]
[TimeControl "180+1"]
[EndTime "10:39:35 PST"]
[Termination "ulkaf961 won on time"]

1. d4 {[%clk 0:03:00.9]} 1... d5 {[%clk 0:02:59.7]} 2. Bg5 {[%clk 0:03:00.2]}
2... g6 {[%clk 0:02:44.2]} 3. c4 {[%clk 0:02:58.1]} 3... c6 {[%clk 0:02:41]} 4.
cxd5 {[%clk 0:02:53.6]} 4... cxd5 {[%clk 0:02:39.9]} 5. Nc3 {[%clk 0:02:53.7]}
5... Bg7 {[%clk 0:02:31.5]} 6. e3 {[%clk 0:02:39.9]} 6... Nf6 {[%clk 0:02:09.6]}
7. Nf3 {[%clk 0:02:39]} 7... O-O {[%clk 0:02:09.3]} 8. h3 {[%clk 0:02:38.9]}
8... Nc6 {[%clk 0:02:05.2]} 9. Bd3 {[%clk 0:02:38.3]} 9... Bf5 {[%clk
0:01:42.6]} 10. O-O {[%clk 0:02:28.7]} 10... Bxd3 {[%clk 0:01:17]} 11. Qxd3
{[%clk 0:02:29.6]} 11... a6 {[%clk 0:01:03.5]} 12. Rac1 {[%clk 0:02:17.6]} 12...
Rc8 {[%clk 0:01:02.9]} 13. Na4 {[%clk 0:02:07.3]} 13... Qa5 {[%clk 0:01:00.9]}
14. b3 {[%clk 0:01:43.3]} 14... Ne4 {[%clk 0:00:58.6]} 15. Nc5 {[%clk
0:01:23.1]} 15... Nb4 {[%clk 0:00:44.7]} 16. Qb1 {[%clk 0:01:08.6]} 16... Nxc5
{[%clk 0:00:29.7]} 17. dxc5 {[%clk 0:01:09.5]} 17... Rfe8 {[%clk 0:00:28]} 18.
e4 {[%clk 0:00:40.1]} 18... Nxa2 {[%clk 0:00:20.5]} 19. Bd2 {[%clk 0:00:26.1]}
19... Qa3 {[%clk 0:00:16.7]} 20. Rc2 {[%clk 0:00:19.4]} 20... Nb4 {[%clk
0:00:16.8]} 21. Rcc1 {[%clk 0:00:14.8]} 21... dxe4 {[%clk 0:00:11.7]} 22. Qxe4
{[%clk 0:00:15.7]} 22... a5 {[%clk 0:00:11.3]} 23. Ne5 {[%clk 0:00:10.7]} 23...
Qxb3 {[%clk 0:00:10.8]} 24. Nd7 {[%clk 0:00:05.7]} 24... Rc7 {[%clk 0:00:08.9]}
25. Nb6 {[%clk 0:00:04]} 25... Nc6 {[%clk 0:00:07.8]} 26. Qf4 {[%clk 0:00:03.3]}
26... e5 {[%clk 0:00:06.6]} 27. Qe4 {[%clk 0:00:03]} 27... Qe6 {[%clk 0:00:06]}
28. Nd5 {[%clk 0:00:02.5]} 28... Rd7 {[%clk 0:00:05.1]} 0-1

[Event "*** Titled Tuesday Blitz"]
[Site "Chess.com"]
[Date "2021.03.02"]
[Round "4"]
[White "Euwe1234"]
[Black "QuintilianoR"]
[Result "0-1"]
[WhiteElo "2464"]
[BlackElo "2711"]
[TimeControl "180+1"]
[EndTime "10:39:37 PST"]
[Termination "QuintilianoR won on time"]

1. e4 {[%clk 0:03:00.9]} 1... e6 {[%clk 0:02:57.8]} 2. d4 {[%clk 0:03:00.5]}
2... d5 {[%clk 0:02:57.4]} 3. Nc3 {[%clk 0:03:00.5]} 3... Nf6 {[%clk 0:02:57]}
4. Bg5 {[%clk 0:02:59.4]} 4... dxe4 {[%clk 0:02:56.5]} 5. Nxe4 {[%clk
0:02:58.8]} 5... Be7 {[%clk 0:02:57]} 6. Bxf6 {[%clk 0:02:58.3]} 6... Bxf6
{[%clk 0:02:57.1]} 7. c3 {[%clk 0:02:49.3]} 7... Nd7 {[%clk 0:02:55.5]} 8. Nf3
{[%clk 0:02:48.7]} 8... O-O {[%clk 0:02:52.5]} 9. Bd3 {[%clk 0:02:47.9]} 9...
Be7 {[%clk 0:02:49.5]} 10. Qc2 {[%clk 0:02:44.5]} 10... h6 {[%clk 0:02:41.8]}
11. Rd1 {[%clk 0:02:42.8]} 11... c5 {[%clk 0:02:36.9]} 12. dxc5 {[%clk
0:02:40.6]} 12... Qc7 {[%clk 0:02:36.9]} 13. c6 {[%clk 0:02:05.9]} 13... bxc6
{[%clk 0:02:30.6]} 14. O-O {[%clk 0:02:04.8]} 14... c5 {[%clk 0:02:30.4]} 15. c4
{[%clk 0:02:02.6]} 15... Bb7 {[%clk 0:02:25.6]} 16. Rfe1 {[%clk 0:01:55.3]}
16... Rad8 {[%clk 0:02:22.6]} 17. b3 {[%clk 0:01:52.1]} 17... Nb8 {[%clk
0:02:18.4]} 18. Qc3 {[%clk 0:01:43.8]} 18... Nc6 {[%clk 0:02:08.8]} 19. Bb1
{[%clk 0:01:41.7]} 19... Rxd1 {[%clk 0:02:01.7]} 20. Rxd1 {[%clk 0:01:42.6]}
20... Rd8 {[%clk 0:02:02.1]} 21. Rxd8+ {[%clk 0:01:40.9]} 21... Qxd8 {[%clk
0:02:03]} 22. Qd2 {[%clk 0:01:39.3]} 22... Nd4 {[%clk 0:01:25.5]} 23. Nxd4
{[%clk 0:01:29.5]} 23... Qxd4 {[%clk 0:01:25.3]} 24. Qxd4 {[%clk 0:01:23.6]}
24... cxd4 {[%clk 0:01:26.2]} 25. f3 {[%clk 0:01:21.6]} 25... g6 {[%clk
0:01:14.1]} 26. Kf1 {[%clk 0:01:14.1]} 26... f5 {[%clk 0:01:12.5]} 27. Nf2
{[%clk 0:01:13.2]} 27... e5 {[%clk 0:00:54.8]} 28. Ke2 {[%clk 0:01:09.6]} 28...
Kg7 {[%clk 0:00:44.2]} 29. g4 {[%clk 0:00:56.1]} 29... Kf6 {[%clk 0:00:38.9]}
30. Bd3 {[%clk 0:00:11.7]} 30... a5 {[%clk 0:00:34.9]} 31. Bc2 {[%clk
0:00:10.6]} 31... Bd6 {[%clk 0:00:24.9]} 32. Bd3 {[%clk 0:00:10.6]} 32... h5
{[%clk 0:00:24.4]} 33. h3 {[%clk 0:00:10.1]} 33... Kg5 {[%clk 0:00:23.1]} 34.
gxh5 {[%clk 0:00:07]} 34... gxh5 {[%clk 0:00:23]} 35. h4+ {[%clk 0:00:05.3]}
35... Kf6 {[%clk 0:00:21.6]} 36. Bc2 {[%clk 0:00:02.8]} 36... Ke6 {[%clk
0:00:18]} 37. Nh1 {[%clk 0:00:01.4]} 37... e4 {[%clk 0:00:17.3]} 0-1

[Event "*** Titled Tuesday Blitz"]
[Site "Chess.com"]
[Date "2021.03.02"]
[Round "4"]
[White "alejogarcia1999"]
[Black "TeukkaSalama"]
[Result "0-1"]
[WhiteElo "2530"]
[BlackElo "2385"]
[TimeControl "180+1"]
[EndTime "10:39:37 PST"]
[Termination "TeukkaSalama won by resignation"]

1. Nf3 {[%clk 0:03:00.9]} 1... f5 {[%clk 0:02:58.4]} 2. g3 {[%clk 0:03:01.2]}
2... Nf6 {[%clk 0:02:58]} 3. Bg2 {[%clk 0:03:01.6]} 3... e6 {[%clk 0:02:58.7]}
4. c4 {[%clk 0:03:01.7]} 4... d5 {[%clk 0:02:58.6]} 5. cxd5 {[%clk 0:03:00.7]}
5... exd5 {[%clk 0:02:58.4]} 6. d3 {[%clk 0:03:01.6]} 6... Nc6 {[%clk
0:02:55.8]} 7. O-O {[%clk 0:03:01.9]} 7... Be7 {[%clk 0:02:55.4]} 8. Nc3 {[%clk
0:03:01.4]} 8... O-O {[%clk 0:02:54.5]} 9. e4 {[%clk 0:03:00.5]} 9... dxe4
{[%clk 0:02:49.2]} 10. Qb3+ {[%clk 0:02:59.6]} 10... Kh8 {[%clk 0:02:48.4]} 11.
dxe4 {[%clk 0:02:59.8]} 11... fxe4 {[%clk 0:02:07.9]} 12. Ng5 {[%clk 0:02:57.8]}
12... Qe8 {[%clk 0:02:08.5]} 13. Ncxe4 {[%clk 0:02:51.6]} 13... Qg6 {[%clk
0:02:00.4]} 14. Be3 {[%clk 0:02:45.8]} 14... Bf5 {[%clk 0:01:43]} 15. Nxf6
{[%clk 0:02:13]} 15... Bxf6 {[%clk 0:01:42.7]} 16. Qxb7 {[%clk 0:02:12]} 16...
Ne5 {[%clk 0:01:10.1]} 17. Qxa8 {[%clk 0:01:37.4]} 17... Rxa8 {[%clk 0:01:09.5]}
18. Bxa8 {[%clk 0:01:38]} 18... Bxg5 {[%clk 0:01:09.2]} 19. Bxg5 {[%clk
0:01:38.6]} 19... Be4 {[%clk 0:00:40.5]} 20. f4 {[%clk 0:01:00]} 20... Qb6+
{[%clk 0:00:28]} 21. Rf2 {[%clk 0:00:59]} 21... Ng4 {[%clk 0:00:21.8]} 22. Rf1
{[%clk 0:00:46.3]} 22... Bxa8 {[%clk 0:00:20.8]} 23. h3 {[%clk 0:00:44.8]} 23...
Qc6 {[%clk 0:00:16.5]} 24. Rf3 {[%clk 0:00:35.5]} 24... Nf6 {[%clk 0:00:12.4]}
25. Bxf6 {[%clk 0:00:34.3]} 25... gxf6 {[%clk 0:00:13.3]} 26. Kg2 {[%clk
0:00:33.1]} 26... Qc5 {[%clk 0:00:13.4]} 27. Rf2 {[%clk 0:00:33.3]} 27... Bxf3+
{[%clk 0:00:13.3]} 28. Kxf3 {[%clk 0:00:33.4]} 28... Qd5+ {[%clk 0:00:12.1]} 29.
Kg4 {[%clk 0:00:33.6]} 29... Qxa2 {[%clk 0:00:13]} 30. Re2 {[%clk 0:00:33.4]}
30... Qc4 {[%clk 0:00:12.1]} 31. Re8+ {[%clk 0:00:32.2]} 31... Kg7 {[%clk
0:00:12.6]} 32. Re7+ {[%clk 0:00:33.1]} 32... Kf8 {[%clk 0:00:13]} 33. Rxh7
{[%clk 0:00:32.1]} 33... Qe2+ {[%clk 0:00:13.2]} 34. Kh4 {[%clk 0:00:32.2]}
34... Qc2 {[%clk 0:00:10]} 35. Rd7 {[%clk 0:00:30.4]} 35... a5 {[%clk
0:00:10.1]} 36. Rd5 {[%clk 0:00:30.1]} 36... a4 {[%clk 0:00:10.1]} 37. Rb5
{[%clk 0:00:28.8]} 37... Kf7 {[%clk 0:00:09.9]} 38. Rb7 {[%clk 0:00:28.5]} 38...
Ke6 {[%clk 0:00:09.8]} 39. g4 {[%clk 0:00:27.8]} 39... Qf2+ {[%clk 0:00:09.6]}
40. Kh5 {[%clk 0:00:28.1]} 40... Qf3 {[%clk 0:00:09.3]} 41. h4 {[%clk
0:00:24.4]} 41... Qxb7 {[%clk 0:00:09]} 0-1

[Event "*** Titled Tuesday Blitz"]
[Site "Chess.com"]
[Date "2021.03.02"]
[Round "4"]
[White "ShahMatKanal"]
[Black "FGHSMN"]
[Result "0-1"]
[WhiteElo "2497"]
[BlackElo "2673"]
[TimeControl "180+1"]
[EndTime "10:39:38 PST"]
[Termination "FGHSMN won on time"]

1. d4 {[%clk 0:03:00.9]} 1... Nf6 {[%clk 0:02:59]} 2. c3 {[%clk 0:03:00.6]} 2...
c5 {[%clk 0:02:57.1]} 3. Nf3 {[%clk 0:02:58.9]} 3... e6 {[%clk 0:02:56.2]} 4.
Bf4 {[%clk 0:02:57.8]} 4... Nc6 {[%clk 0:02:54.2]} 5. e3 {[%clk 0:02:57.4]} 5...
d5 {[%clk 0:02:49.1]} 6. Nbd2 {[%clk 0:02:57.5]} 6... Bd6 {[%clk 0:02:47.9]} 7.
Bg3 {[%clk 0:02:54.7]} 7... O-O {[%clk 0:02:46.2]} 8. Bd3 {[%clk 0:02:49.9]}
8... Qe7 {[%clk 0:02:44.7]} 9. Ne5 {[%clk 0:02:41.8]} 9... Bxe5 {[%clk
0:02:40.7]} 10. dxe5 {[%clk 0:02:41.7]} 10... Nd7 {[%clk 0:02:41]} 11. f4 {[%clk
0:02:07.7]} 11... d4 {[%clk 0:02:28.7]} 12. exd4 {[%clk 0:01:59.7]} 12... cxd4
{[%clk 0:02:29.6]} 13. Ne4 {[%clk 0:01:49.3]} 13... dxc3 {[%clk 0:01:59.5]} 14.
bxc3 {[%clk 0:01:42.4]} 14... f5 {[%clk 0:01:47.5]} 15. Nd6 {[%clk 0:01:24.9]}
15... g5 {[%clk 0:01:36]} 16. Qe2 {[%clk 0:01:10.3]} 16... Qg7 {[%clk
0:01:27.8]} 17. Nc4 {[%clk 0:01:01.2]} 17... gxf4 {[%clk 0:01:20.8]} 18. Bxf4
{[%clk 0:01:00.7]} 18... b5 {[%clk 0:01:21.2]} 19. Nd6 {[%clk 0:00:38.1]} 19...
Ndxe5 {[%clk 0:01:06.3]} 20. Bxb5 {[%clk 0:00:34.7]} 20... Ng6 {[%clk
0:01:02.7]} 21. O-O {[%clk 0:00:22.4]} 21... Nxf4 {[%clk 0:00:48.9]} 22. Rxf4
{[%clk 0:00:21.9]} 22... Qxc3 {[%clk 0:00:44.4]} 23. Rd1 {[%clk 0:00:17.3]}
23... Ne5 {[%clk 0:00:30.9]} 24. Kh1 {[%clk 0:00:09.1]} 24... Ng6 {[%clk
0:00:29.5]} 25. Rc4 {[%clk 0:00:07.5]} 25... Qf6 {[%clk 0:00:28.8]} 26. Rc7
{[%clk 0:00:07]} 26... Rb8 {[%clk 0:00:21]} 27. a4 {[%clk 0:00:06.3]} 27... e5
{[%clk 0:00:13.8]} 28. Qc4+ {[%clk 0:00:04.4]} 28... Be6 {[%clk 0:00:13.9]} 29.
Qc5 {[%clk 0:00:04.1]} 29... Rbd8 {[%clk 0:00:13.7]} 30. Qxa7 {[%clk 0:00:03.8]}
30... e4 {[%clk 0:00:12.4]} 31. Rxh7 {[%clk 0:00:03.1]} 31... Bb3 {[%clk
0:00:12]} 32. Rf1 {[%clk 0:00:02]} 32... Rxd6 {[%clk 0:00:11.5]} 33. h3 {[%clk
0:00:01.3]} 33... f4 {[%clk 0:00:10.9]} 0-1

[Event "*** Titled Tuesday Blitz"]
[Site "Chess.com"]
[Date "2021.03.02"]
[Round "4"]
[White "m_ezat"]
[Black "gisela_roque"]
[Result "1-0"]
[WhiteElo "2518"]
[BlackElo "1743"]
[TimeControl "180+1"]
[EndTime "10:39:38 PST"]
[Termination "m_ezat won by resignation"]

1. d4 {[%clk 0:03:00.9]} 1... e6 {[%clk 0:02:59]} 2. c4 {[%clk 0:03:00.6]} 2...
Nf6 {[%clk 0:02:58.1]} 3. Nc3 {[%clk 0:03:01.1]} 3... Bb4 {[%clk 0:02:57.1]} 4.
Qc2 {[%clk 0:02:59.8]} 4... c5 {[%clk 0:02:44.4]} 5. d5 {[%clk 0:02:57.5]} 5...
exd5 {[%clk 0:02:33.6]} 6. cxd5 {[%clk 0:02:55.9]} 6... Nxd5 {[%clk 0:02:31.4]}
7. e4 {[%clk 0:02:48.5]} 7... Ne7 {[%clk 0:02:21.1]} 8. Nf3 {[%clk 0:02:47.1]}
8... O-O {[%clk 0:02:19.6]} 9. Bc4 {[%clk 0:02:46.1]} 9... Nbc6 {[%clk
0:02:17.5]} 10. O-O {[%clk 0:02:45.6]} 10... a6 {[%clk 0:02:11.3]} 11. Rd1
{[%clk 0:02:43.7]} 11... b5 {[%clk 0:02:08.8]} 12. Bd5 {[%clk 0:02:43.7]} 12...
Bxc3 {[%clk 0:02:00.9]} 13. bxc3 {[%clk 0:02:43.3]} 13... Nxd5 {[%clk
0:02:00.9]} 14. exd5 {[%clk 0:02:42.9]} 14... Ne7 {[%clk 0:02:00.3]} 15. d6
{[%clk 0:02:40]} 15... Ng6 {[%clk 0:01:59.4]} 16. Be3 {[%clk 0:02:32]} 16... Bb7
{[%clk 0:01:59.3]} 17. Ng5 {[%clk 0:02:28.2]} 17... h6 {[%clk 0:01:44.9]} 18.
Nxf7 {[%clk 0:02:27.3]} 18... Rxf7 {[%clk 0:01:36.3]} 19. Qxg6 {[%clk
0:02:26.7]} 19... Rf6 {[%clk 0:01:36.3]} 20. Qg4 {[%clk 0:02:20.8]} 20... Qe8
{[%clk 0:01:23]} 21. Qh4 {[%clk 0:01:32.3]} 21... Rg6 {[%clk 0:01:19.3]} 22. g3
{[%clk 0:01:30.9]} 22... Qe6 {[%clk 0:01:13.4]} 23. Re1 {[%clk 0:01:18.5]} 23...
Rg4 {[%clk 0:01:09]} 24. Qh3 {[%clk 0:00:46.9]} 24... Qe4 {[%clk 0:01:03.9]} 25.
Kf1 {[%clk 0:00:46.6]} 25... Qh1+ {[%clk 0:00:35.6]} 26. Ke2 {[%clk 0:00:46.1]}
26... Qf3+ {[%clk 0:00:34]} 27. Kd2 {[%clk 0:00:46.2]} 27... Rg6 {[%clk
0:00:27.9]} 28. Qxd7 {[%clk 0:00:43.2]} 28... Qd5+ {[%clk 0:00:24.7]} 29. Kc2
{[%clk 0:00:38.8]} 29... Rxd6 {[%clk 0:00:24.5]} 30. Qg4 {[%clk 0:00:35.1]}
30... Qd3+ {[%clk 0:00:16.2]} 31. Kb2 {[%clk 0:00:34.8]} 31... Be4 {[%clk
0:00:15.3]} 32. Rac1 {[%clk 0:00:31.3]} 32... b4 {[%clk 0:00:14.7]} 33. Red1
{[%clk 0:00:25.9]} 33... bxc3+ {[%clk 0:00:14.4]} 34. Ka1 {[%clk 0:00:26.4]}
34... Qb5 {[%clk 0:00:12.8]} 35. Rxc3 {[%clk 0:00:23]} 35... Rxd1+ {[%clk
0:00:10.5]} 36. Qxd1 {[%clk 0:00:22.7]} 36... Kh7 {[%clk 0:00:10.5]} 37. f3
{[%clk 0:00:19.8]} 37... Rb8 {[%clk 0:00:10.1]} 38. Rb3 {[%clk 0:00:17.5]} 1-0

[Event "*** Titled Tuesday Blitz"]
[Site "Chess.com"]
[Date "2021.03.02"]
[Round "4"]
[White "Abund"]
[Black "frenchpin"]
[Result "0-1"]
[WhiteElo "2663"]
[BlackElo "2515"]
[TimeControl "180+1"]
[EndTime "10:39:39 PST"]
[Termination "frenchpin won by resignation"]

1. e4 {[%clk 0:03:00.9]} 1... e6 {[%clk 0:03:00.9]} 2. d4 {[%clk 0:02:59.8]}
2... d5 {[%clk 0:03:01.3]} 3. Nd2 {[%clk 0:02:59.5]} 3... c5 {[%clk 0:03:01.1]}
4. Ngf3 {[%clk 0:02:59]} 4... Nc6 {[%clk 0:03:01.1]} 5. exd5 {[%clk 0:02:53.8]}
5... exd5 {[%clk 0:03:02]} 6. Bb5 {[%clk 0:02:53.7]} 6... Qe7+ {[%clk
0:03:02.5]} 7. Qe2 {[%clk 0:02:49.3]} 7... Qxe2+ {[%clk 0:03:02.9]} 8. Kxe2
{[%clk 0:02:49]} 8... a6 {[%clk 0:03:02.8]} 9. Bxc6+ {[%clk 0:02:39.1]} 9...
bxc6 {[%clk 0:03:03.7]} 10. c3 {[%clk 0:02:20.1]} 10... a5 {[%clk 0:02:54]} 11.
Nb3 {[%clk 0:02:14.9]} 11... cxd4 {[%clk 0:02:41.4]} 12. cxd4 {[%clk 0:02:13.4]}
12... a4 {[%clk 0:02:30.1]} 13. Nc5 {[%clk 0:02:11.8]} 13... Bxc5 {[%clk
0:02:18.9]} 14. dxc5 {[%clk 0:02:11.6]} 14... Ba6+ {[%clk 0:02:19.1]} 15. Kd1
{[%clk 0:02:07.1]} 15... f6 {[%clk 0:02:18.3]} 16. Bf4 {[%clk 0:02:05.1]} 16...
Ne7 {[%clk 0:02:12.4]} 17. Re1 {[%clk 0:02:04.3]} 17... Kd7 {[%clk 0:02:12.2]}
18. Nd4 {[%clk 0:02:01.8]} 18... Rhe8 {[%clk 0:02:06]} 19. Kc2 {[%clk
0:01:59.5]} 19... Ng6 {[%clk 0:01:58.4]} 20. Bg3 {[%clk 0:01:32.9]} 20... Ne5
{[%clk 0:01:52.7]} 21. Kc3 {[%clk 0:01:21.8]} 21... Nd3 {[%clk 0:01:44.4]} 22.
Rxe8 {[%clk 0:01:18.4]} 22... Rxe8 {[%clk 0:01:45.3]} 23. Bd6 {[%clk 0:01:18.2]}
23... Nxf2 {[%clk 0:01:43.2]} 24. Nf5 {[%clk 0:00:38]} 24... g6 {[%clk
0:01:35.4]} 25. Ng3 {[%clk 0:00:36.6]} 25... Re3+ {[%clk 0:01:27.1]} 26. Kb4
{[%clk 0:00:36.4]} 26... Bb5 {[%clk 0:01:27]} 27. b3 {[%clk 0:00:31.4]} 27...
Nd3+ {[%clk 0:01:19.6]} 28. Ka5 {[%clk 0:00:31.2]} 28... a3 {[%clk 0:00:58.1]}
29. Rb1 {[%clk 0:00:14.6]} 29... f5 {[%clk 0:00:47.1]} 30. h4 {[%clk 0:00:10.2]}
30... Nxc5 {[%clk 0:00:32.6]} 31. Nxf5 {[%clk 0:00:08.3]} 31... Nb7+ {[%clk
0:00:29.6]} 32. Kb6 {[%clk 0:00:08.4]} 32... gxf5 {[%clk 0:00:29.8]} 33. Bf4
{[%clk 0:00:08.1]} 33... Re4 {[%clk 0:00:24.3]} 34. g3 {[%clk 0:00:08.4]} 34...
Nd8 {[%clk 0:00:22.7]} 35. Rc1 {[%clk 0:00:07.9]} 35... Ne6 {[%clk 0:00:22.5]}
36. Bb8 {[%clk 0:00:08]} 36... d4 {[%clk 0:00:22.1]} 37. Rd1 {[%clk 0:00:07.6]}
37... d3 {[%clk 0:00:22]} 38. Rd2 {[%clk 0:00:07.7]} 38... Re2 {[%clk
0:00:21.6]} 39. Rd1 {[%clk 0:00:07.9]} 39... Rxa2 {[%clk 0:00:21.2]} 40. Be5
{[%clk 0:00:08.5]} 40... Rc2 {[%clk 0:00:20.6]} 0-1

[Event "*** Titled Tuesday Blitz"]
[Site "Chess.com"]
[Date "2021.03.02"]
[Round "4"]
[White "frederiksvane"]
[Black "BogdanDeac"]
[Result "0-1"]
[WhiteElo "2680"]
[BlackElo "2983"]
[TimeControl "180+1"]
[EndTime "10:39:42 PST"]
[Termination "BogdanDeac won by resignation"]

1. e4 {[%clk 0:03:00.9]} 1... c5 {[%clk 0:02:34.8]} 2. Nf3 {[%clk 0:03:00.9]}
2... a6 {[%clk 0:02:34.4]} 3. c4 {[%clk 0:03:00]} 3... e6 {[%clk 0:02:06.3]} 4.
Nc3 {[%clk 0:02:59.4]} 4... Qc7 {[%clk 0:02:05.8]} 5. d4 {[%clk 0:02:59.5]} 5...
cxd4 {[%clk 0:02:05.5]} 6. Nxd4 {[%clk 0:03:00.4]} 6... Nf6 {[%clk 0:02:05.5]}
7. Be2 {[%clk 0:03:00.2]} 7... Bb4 {[%clk 0:02:05.1]} 8. Qd3 {[%clk 0:02:56.8]}
8... Nc6 {[%clk 0:02:03.8]} 9. O-O {[%clk 0:02:50.2]} 9... O-O {[%clk
0:02:01.9]} 10. Nxc6 {[%clk 0:02:02.8]} 10... dxc6 {[%clk 0:01:52.7]} 11. f4
{[%clk 0:02:02.3]} 11... Rd8 {[%clk 0:01:40.4]} 12. Qf3 {[%clk 0:01:45.1]} 12...
e5 {[%clk 0:01:20.2]} 13. fxe5 {[%clk 0:01:44.8]} 13... Qxe5 {[%clk 0:00:35.3]}
14. Bf4 {[%clk 0:01:43.6]} 14... Qc5+ {[%clk 0:00:34.1]} 15. Be3 {[%clk
0:01:27.1]} 15... Qa5 {[%clk 0:00:32.4]} 16. Qg3 {[%clk 0:01:01.9]} 16... Bd6
{[%clk 0:00:22.3]} 17. Qh4 {[%clk 0:00:17.2]} 17... Be5 {[%clk 0:00:18.7]} 18.
Qf2 {[%clk 0:00:10]} 18... Qb4 {[%clk 0:00:16.2]} 19. Rab1 {[%clk 0:00:08.3]}
19... Qe7 {[%clk 0:00:12.1]} 20. Bc5 {[%clk 0:00:08.7]} 20... Qe8 {[%clk
0:00:10]} 21. Rbd1 {[%clk 0:00:08.1]} 21... Be6 {[%clk 0:00:09.6]} 22. Bb6
{[%clk 0:00:07]} 22... Rxd1 {[%clk 0:00:09.5]} 23. Rxd1 {[%clk 0:00:07.9]} 23...
Qe7 {[%clk 0:00:07.4]} 24. Bc5 {[%clk 0:00:07.8]} 24... Qc7 {[%clk 0:00:07.5]}
25. g3 {[%clk 0:00:03.6]} 25... Rd8 {[%clk 0:00:07.6]} 26. Rxd8+ {[%clk
0:00:02.8]} 26... Qxd8 {[%clk 0:00:07.7]} 27. Qe3 {[%clk 0:00:03.1]} 27... Nd7
{[%clk 0:00:04.9]} 28. Ba7 {[%clk 0:00:02.7]} 28... c5 {[%clk 0:00:04.2]} 29.
Na4 {[%clk 0:00:01.7]} 29... Bd4 {[%clk 0:00:04.2]} 30. Qxd4 {[%clk 0:00:01.7]}
30... cxd4 {[%clk 0:00:04.5]} 31. Bxd4 {[%clk 0:00:02.6]} 31... Qa5 {[%clk
0:00:04.8]} 32. Nc3 {[%clk 0:00:02.5]} 32... Qb4 {[%clk 0:00:05]} 33. Nd5 {[%clk
0:00:02.1]} 33... Qe1+ {[%clk 0:00:04.8]} 34. Bf1 {[%clk 0:00:02.3]} 34... Bh3
{[%clk 0:00:04.6]} 0-1